bitfinex/quotes_SOLUSD_20251208
["timestamp","ask_amount","ask_price","bid_price","bid_amount"]
[1765199520704,0.68,138.72,138.68,17.16361826]
[1765199520903,0.68,138.72,138.68,24.37436624]
[1765199521108,0.68,138.72,138.68,17.16361826]
[1765199521420,9.94361826,138.72,138.65,26.27248226]
[1765199521623,9.26361826,138.68,138.63,0.5]
[1765199521812,16.47498337,138.67,138.61,16.4777974]
[1765199522125,35.18339614,138.67,138.61,16.4777974]
[1765199522329,0.68,138.66,138.61,16.4777974]
[1765199522700,0.68,138.66,138.62,9.26361826]
[1765199523730,7.21240533,138.65,138.6,17.16361826]
[1765199524123,0.68,138.64,138.6,17.16361826]
[1765199524827,9.26361826,138.63,138.57,7.21637917]
[1765199525028,0.68,138.62,138.57,16.47999743]
[1765199525402,0.68,138.62,138.57,17.17999743]
[1765199525802,7.89409952,138.62,138.58,9.26361826]
[1765199526024,7.89409952,138.62,138.58,9.96361826]
[1765199526225,7.89409952,138.62,138.58,9.26361826]
[1765199526454,7.89409952,138.62,138.56,7.9]
[1765199526455,0.68,138.61,138.56,17.16361826]
[1765199526629,0.68,138.61,138.57,9.26361826]
[1765199526832,0.68,138.61,138.56,9.26361826]
[1765199527024,9.94361826,138.61,138.55,9.26361826]
[1765199527424,0.68,138.6,138.54,15.81797391]
[1765199527625,9.94361826,138.6,138.54,25.08159217]
[1765199527844,9.26361826,138.58,138.52,9.26361826]
[1765199528015,9.26361826,138.57,138.51,9.96361826]
[1765199528348,9.26361826,138.54,138.48,16.6848504]
[1765199528548,9.26361826,138.52,138.48,0.2]
[1765199528739,9.26361826,138.53,138.48,0.2]
[1765199529366,9.94361826,138.52,138.48,0.2]
[1765199529641,9.94361826,138.51,138.48,0.2]
[1765199530118,7.89974962,138.51,138.48,0.2]
[1765199530719,17.16336788,138.51,138.48,0.2]
[1765199531245,9.94361826,138.5,138.48,0.2]
[1765199531748,9.94361826,138.49,138.48,0.2]
[1765199532046,17.16435621,138.49,138.48,0.2]
[1765199532223,0.68,138.51,138.48,0.2]
[1765199532422,0.68,138.51,138.48,9.46361826]
[1765199532722,7.21960013,138.52,138.48,9.46361826]
[1765199532937,7.89960013,138.52,138.48,9.96361826]
[1765199533136,0.68,138.51,138.48,9.96361826]
[1765199533646,7.21960013,138.52,138.48,17.18473414]
[1765199533949,0.68,138.51,138.49,9.26361826]
[1765199534124,0.68,138.51,138.48,9.96361826]
[1765199534522,0.68,138.55,138.5,9.26361826]
[1765199534749,0.68,138.55,138.51,9.26361826]
[1765199535429,0.68,138.55,138.49,0.7]
[1765199535430,0.68,138.55,138.5,9.26361826]
[1765199535625,0.68,138.55,138.49,0.7]
[1765199535626,0.68,138.55,138.51,9.26361826]
[1765199535830,7.21813194,138.54,138.51,9.26361826]
[1765199536231,7.89813194,138.54,138.51,9.26361826]
[1765199536446,7.89813194,138.54,138.5,9.26361826]
[1765199538240,7.21761097,138.55,138.52,9.26361826]
[1765199538553,0.68,138.55,138.53,9.26361826]
[1765199538745,0.68,138.59,138.54,9.26361826]
[1765199538944,18.03792627,138.6,138.56,9.26361826]
[1765199538945,25.93792627,138.6,138.56,9.26361826]
[1765199539144,25.93792627,138.6,138.51,0.7]
[1765199539145,35.19814207,138.59,138.53,9.26361826]
[1765199539346,25.93452381,138.59,138.55,9.26361826]
[1765199539655,25.93452381,138.59,138.54,9.26361826]
[1765199540056,26.61609432,138.62,138.56,9.26361826]
[1765199540244,7.89448668,138.61,138.56,9.26361826]
[1765199540659,0.68,138.6,138.56,9.26361826]
[1765199540958,35.8762043,138.64,138.57,9.96361826]
[1765199541161,7.21344586,138.63,138.57,9.96361826]
[1765199541357,17.17706412,138.63,138.57,0.7]
[1765199541558,0.7,138.62,138.57,0.7]
[1765199541736,0.7,138.62,138.53,7.9]
[1765199541737,9.26361826,138.61,138.55,9.94361826]
[1765199541937,17.16361826,138.61,138.55,9.94361826]
[1765199542255,7.21500721,138.6,138.55,17.16110235]
[1765199542662,7.91500721,138.6,138.55,17.16110235]
[1765199542877,7.21500721,138.6,138.55,9.26361826]
[1765199543177,25.94165447,138.66,138.59,9.26361826]
[1765199543335,25.94165447,138.66,138.61,9.26361826]
[1765199543336,0.7,138.65,138.61,9.26361826]
[1765199543534,9.96361826,138.65,138.59,9.94361826]
[1765199543953,0.7,138.64,138.59,9.94361826]
[1765199544136,7.21344586,138.63,138.59,9.94361826]
[1765199544340,7.21344586,138.63,138.58,17.16361826]
[1765199544545,0.7,138.62,138.58,17.16361826]
[1765199544863,0.7,138.62,138.55,18.04402742]
[1765199544864,9.96361826,138.62,138.56,9.26361826]
[1765199545260,0.7,138.61,138.56,9.26361826]
[1765199546765,7.21500721,138.6,138.56,9.26361826]
[1765199547137,0.7,138.59,138.56,9.26361826]
[1765199547338,7.21500721,138.6,138.56,17.16068853]
[1765199547660,7.91500721,138.6,138.56,17.16068853]
[1765199547850,7.91500721,138.6,138.56,9.94361826]
[1765199548052,7.91500721,138.6,138.55,7.9]
[1765199548053,0.7,138.59,138.55,7.9]
[1765199548351,0.7,138.59,138.55,25.06119986]
[1765199548749,7.91588219,138.59,138.55,17.16361826]
[1765199548957,7.91588219,138.59,138.54,9.26361826]
[1765199548958,25.95470172,138.59,138.54,9.26361826]
[1765199549263,9.96361826,138.58,138.52,9.26361826]
[1765199549461,9.96361826,138.58,138.51,9.26361826]
[1765199549462,18.07356318,138.57,138.51,9.26361826]
[1765199549766,7.9,138.56,138.51,9.26361826]
[1765199550064,7.9,138.56,138.49,15.1203638]
[1765199550065,17.86361826,138.56,138.5,16.48377737]
[1765199550262,0.7,138.55,138.5,16.48377737]
[1765199550569,0.7,138.55,138.51,9.26361826]
[1765199550752,7.21813194,138.54,138.51,9.26361826]
[1765199551152,7.91813194,138.54,138.51,9.26361826]
[1765199553989,18.07356318,138.57,138.53,9.26361826]
[1765199553990,0.7,138.57,138.53,9.26361826]
[1765199554744,7.21724846,138.56,138.51,9.26361826]
[1765199555171,0.7,138.55,138.5,17.16367489]
[1765199555882,0.7,138.55,138.5,0.68]
[1765199556293,9.96361826,138.55,138.49,15.12052922]
[1765199556739,0.7,138.54,138.49,15.12052922]
[1765199556943,7.21865299,138.53,138.49,7.9]
[1765199557339,0.7,138.52,138.48,0.2]
[1765199557539,0.7,138.52,138.48,0.88]
[1765199558140,0.7,138.52,138.48,0.2]
[1765199558747,9.96361826,138.52,138.48,0.2]
[1765199559072,7.2202166,138.5,138.48,0.2]
[1765199559372,16.48383486,138.5,138.48,0.2]
[1765199559569,0.7,138.49,138.48,0.2]
[1765199559767,9.96361826,138.49,138.48,0.2]
[1765199560072,18.77356318,138.49,138.48,0.2]
[1765199560370,7.2202166,138.5,138.48,0.2]
[1765199560568,0.7,138.49,138.48,0.2]
[1765199561279,7.92073795,138.49,138.48,0.2]
[1765199562860,13.48496198,138.49,138.48,0.2]
[1765199563985,7.92073795,138.49,138.48,0.2]
[1765199564194,13.48496198,138.49,138.48,0.2]
[1765199564662,22.2949069,138.49,138.48,0.2]
[1765199566287,7.92073795,138.49,138.48,0.2]
[1765199569790,13.48496198,138.49,138.48,0.2]
[1765199570395,22.2949069,138.49,138.48,1e-08]
[1765199575682,16.73068287,138.49,138.48,1e-08]
[1765199575988,22.2949069,138.49,138.48,1e-08]
[1765199577796,16.73068287,138.49,138.48,1e-08]
[1765199577982,22.2949069,138.49,138.48,1e-08]
[1765199580491,30.1949069,138.49,138.48,1e-08]
[1765199581083,29.4949069,138.49,138.48,1e-08]
[1765199581298,30.2049069,138.49,138.48,1e-08]
[1765199583690,46.5137709,138.49,138.48,1e-08]
[1765199584775,25.11880892,138.46,138.45,1e-08]
[1765199584977,38.58303295,138.46,138.45,1e-08]
[1765199585185,46.51533542,138.46,138.45,1e-08]
[1765199590506,15.12230247,138.46,138.45,0.66000001]
[1765199590677,7.22230247,138.46,138.45,0.66000001]
[1765199590872,7.22200761,138.47,138.45,0.66000001]
[1765199597311,9.3590252,138.47,138.45,0.66000001]
[1765199597609,7.22200761,138.47,138.45,0.66000001]
[1765199603112,7.22200761,138.47,138.45,1e-08]
[1765199603484,15.09584806,138.46,138.45,1e-08]
[1765199604092,22.31815053,138.46,138.45,1e-08]
[1765199605429,30.21815053,138.46,138.45,1e-08]
[1765199615935,40.96111139,138.46,138.45,1e-08]
[1765199616129,46.52701453,138.46,138.45,1e-08]
[1765199616336,59.31931369,138.46,138.45,1e-08]
[1765199618746,43.01044969,138.46,138.45,1e-08]
[1765199620143,45.80701453,138.46,138.45,1e-08]
[1765199620445,46.52701453,138.46,138.45,1e-08]
[1765199620746,44.302932,138.46,138.45,1e-08]
[1765199623027,43.582932,138.46,138.45,1e-08]
[1765199623935,44.302932,138.46,138.45,1e-08]
[1765199624141,43.582932,138.46,138.45,1e-08]
[1765199625928,44.302932,138.46,138.45,1e-08]
[1765199627031,43.582932,138.46,138.45,1e-08]
[1765199627230,44.302932,138.46,138.45,1e-08]
[1765199629844,65.99882785,138.46,138.45,1e-08]
[1765199630949,44.302932,138.46,138.45,1e-08]
[1765199631141,51.5298756,138.46,138.45,1e-08]
[1765199632722,44.302932,138.46,138.45,1e-08]
[1765199633043,43.582932,138.46,138.45,1e-08]
[1765199634935,44.282932,138.46,138.45,1e-08]
[1765199637353,43.582932,138.46,138.45,0.70000001]
[1765199638456,43.582932,138.46,138.45,1e-08]
[1765199639155,44.282932,138.46,138.45,1e-08]
[1765199639452,27.974068,138.46,138.45,1e-08]
[1765199640156,38.54215722,138.46,138.45,1e-08]
[1765199640459,43.582932,138.46,138.45,0.70000001]
[1765199640758,43.582932,138.46,138.45,1e-08]
[1765199641432,43.582932,138.46,138.45,0.70000001]
[1765199641835,43.582932,138.46,138.45,1e-08]
[1765199642165,27.274068,138.46,138.45,1e-08]
[1765199642533,21.69275823,138.49,138.45,0.70000001]
[1765199642789,3.34182061,138.51,138.45,4.04182062]
[1765199643056,7.92,138.5,138.46,3.34182061]
[1765199643243,7.92,138.5,138.46,4.04182061]
[1765199643428,7.92,138.5,138.47,0.7]
[1765199643632,15.14042683,138.5,138.47,0.7]
[1765199644561,18.48224744,138.5,138.47,0.7]
[1765199644938,36.53278895,138.5,138.47,0.7]
[1765199645139,33.19096834,138.5,138.47,0.7]
[1765199648965,8.80994492,138.49,138.47,0.7]
[1765199649646,8.80994492,138.47,138.45,0.70000001]
[1765199649855,12.15176553,138.47,138.45,0.70000001]
[1765199650235,7.22230247,138.46,138.45,0.70000001]
[1765199650439,7.22230247,138.46,138.45,1e-08]
[1765199650641,7.22230247,138.46,138.45,0.70000001]
[1765199651771,16.03187099,138.47,138.45,0.70000001]
[1765199653869,15.12141552,138.48,138.45,0.70000001]
[1765199654175,7.9,138.48,138.45,0.70000001]
[1765199655353,8.80994492,138.47,138.45,0.70000001]
[1765199655564,12.15176553,138.47,138.45,1e-08]
[1765199655757,12.15176553,138.47,138.45,0.70000001]
[1765199656445,8.80994492,138.47,138.45,0.70000001]
[1765199657275,16.03202015,138.47,138.45,0.70000001]
[1765199662695,15.12150562,138.48,138.45,0.70000001]
[1765199663253,7.9,138.48,138.45,7.92271998]
[1765199663675,7.9,138.48,138.46,0.67]
[1765199664178,18.46324314,138.48,138.45,1e-08]
[1765199664381,18.46324314,138.48,138.46,0.67]
[1765199664585,15.12142253,138.48,138.46,0.67]
[1765199664881,8.80994492,138.45,138.38,0.67]
[1765199665054,8.80994492,138.41,138.38,0.67]
[1765199665255,16.70994492,138.41,138.38,0.67]
[1765199665452,7.9,138.41,138.38,7.89639226]
[1765199665655,7.9,138.43,138.38,11.23821287]
[1765199665876,7.9,138.43,138.36,0.2]
[1765199665877,12.15176553,138.4,138.36,0.2]
[1765199666067,12.15176553,138.4,138.37,0.67]
[1765199666068,3.34182061,138.39,138.37,0.67]
[1765199666464,27.27772042,138.4,138.37,0.67]
[1765199667771,27.27772042,138.4,138.36,0.2]
[1765199667952,3.34182061,138.39,138.36,0.87]
[1765199669174,10.56804289,138.39,138.36,0.87]
[1765199669683,7.22622228,138.39,138.36,0.87]
[1765199670185,7.22622228,138.39,138.37,0.67]
[1765199672076,12.15176553,138.38,138.36,0.2]
[1765199672262,12.15176553,138.37,138.36,0.2]
[1765199672458,12.84176553,138.37,138.36,0.2]
[1765199673671,17.68639865,138.37,138.36,0.2]
[1765199673990,33.99526265,138.37,138.36,0.2]
[1765199674285,41.22226272,138.37,138.36,0.2]
[1765199674685,24.91339872,138.37,138.36,0.2]
[1765199674991,25.11880892,138.35,138.34,0.2]
[1765199675186,36.38062953,138.35,138.34,0.2]
[1765199675371,37.07062953,138.35,138.34,0.2]
[1765199675698,44.80486707,138.35,138.34,0.2]
[1765199675862,44.80486707,138.35,138.34,1e-08]
[1765199676371,49.13761313,138.35,138.34,1e-08]
[1765199677074,8.80994492,138.34,138.33,1e-08]
[1765199677292,8.80994492,138.34,138.31,0.2]
[1765199677293,25.11880892,138.32,138.31,0.2]
[1765199677482,41.21956832,138.32,138.31,0.2]
[1765199677684,41.90956832,138.32,138.31,0.2]
[1765199678270,44.30024202,138.32,138.31,0.2]
[1765199679300,49.12254076,138.32,138.31,0.2]
[1765199679978,8.80994492,138.27,138.25,0.67]
[1765199680178,12.15176553,138.27,138.25,0.67]
[1765199680499,15.15274989,138.26,138.23,0.67]
[1765199680875,18.4945705,138.26,138.23,0.67]
[1765199681277,11.26182061,138.26,138.23,0.67]
[1765199681676,7.92,138.26,138.23,0.67]
[1765199681882,16.72994492,138.26,138.23,0.67]
[1765199682487,23.96295692,138.26,138.23,0.67]
[1765199682891,26.10702685,138.26,138.23,0.67]
[1765199683087,16.72994492,138.26,138.23,0.67]
[1765199683391,16.72994492,138.26,138.23,7.90430839]
[1765199683899,16.72994492,138.26,138.24,0.67]
[1765199684489,7.92,138.26,138.24,7.90370014]
[1765199684688,7.92,138.26,138.25,0.67]
[1765199685101,7.92,138.26,138.23,0.67]
[1765199685807,15.15274989,138.26,138.23,0.67]
[1765199685993,7.92,138.26,138.23,7.9042798]
[1765199686187,7.92,138.26,138.24,0.67]
[1765199687102,2.14406993,138.31,138.24,2.81406993]
[1765199687287,8.80994492,138.29,138.24,2.81406993]
[1765199687479,7.92,138.3,138.25,2.81406993]
[1765199687852,7.92,138.3,138.26,2.81406993]
[1765199687981,7.92,138.3,138.27,7.9022268]
[1765199688484,7.92,138.3,138.28,0.67]
[1765199689201,17.29487223,138.3,138.28,0.67]
[1765199693211,11.64401485,138.29,138.26,0.68]
[1765199693401,11.64401485,138.29,138.25,0.68]
[1765199693901,2.14406993,138.28,138.25,0.68]
[1765199694116,2.14406993,138.27,138.24,0.68]
[1765199694292,8.80994492,138.26,138.24,0.68]
[1765199694834,11.64401485,138.26,138.22,0.88]
[1765199695126,18.18707094,138.26,138.23,0.68]
[1765199695353,16.04300101,138.26,138.23,0.68]
[1765199695822,18.18707094,138.26,138.23,0.68]
[1765199696010,2.83406993,138.25,138.22,0.2]
[1765199696322,2.83406993,138.25,138.22,0.88]
[1765199696707,11.64401485,138.24,138.22,0.2]
[1765199697027,7.92,138.24,138.22,0.2]
[1765199697198,15.1538818,138.24,138.22,0.88]
[1765199697408,15.1538818,138.24,138.22,0.2]
[1765199697714,8.80994492,138.23,138.22,0.2]
[1765199698116,10.95401485,138.23,138.22,0.2]
[1765199698626,8.80994492,138.23,138.22,0.2]
[1765199699133,11.66401485,138.23,138.22,0.2]
[1765199699326,16.75426453,138.23,138.22,0.2]
[1765199700234,18.89833446,138.23,138.22,0.2]
[1765199700442,18.18833446,138.23,138.22,0.2]
[1765199700609,16.04426453,138.23,138.22,0.2]
[1765199701235,16.75426453,138.23,138.22,0.2]
[1765199701407,8.80994492,138.23,138.22,0.9]
[1765199701937,16.04426453,138.23,138.22,0.9]
[1765199702243,15.15361423,138.25,138.22,0.9]
[1765199702806,17.29768416,138.25,138.22,0.9]
[1765199703024,18.00768416,138.25,138.22,0.9]
[1765199703337,7.23431961,138.23,138.22,0.2]
[1765199704235,8.80994492,138.24,138.22,0.9]
[1765199704527,15.1535748,138.25,138.22,0.2]
[1765199704840,18.00764473,138.25,138.22,0.9]
[1765199705013,10.95401485,138.24,138.22,0.2]
[1765199705336,10.95401485,138.24,138.22,0.9]
[1765199705547,18.18813456,138.24,138.22,0.9]
[1765199706328,16.04406463,138.24,138.22,0.9]
[1765199707424,8.80994492,138.24,138.22,0.9]
[1765199707636,16.04381891,138.24,138.22,0.9]
[1765199708129,8.80994492,138.24,138.22,0.9]
[1765199708331,7.92,138.25,138.23,0.7]
[1765199708937,8.80994492,138.26,138.23,0.7]
[1765199709134,16.72994492,138.26,138.23,0.7]
[1765199709835,23.96278651,138.26,138.23,0.7]
[1765199711448,23.96278651,138.26,138.23,7.93423967]
[1765199711947,103.0,138.27,138.24,0.7]
[1765199712140,42.4147664,138.28,138.24,0.7]
[1765199712939,16.04237132,138.27,138.24,0.7]
[1765199714113,16.75237132,138.27,138.24,0.7]
[1765199714714,16.04237132,138.27,138.24,0.7]
[1765199714915,16.75237132,138.27,138.24,0.7]
[1765199715344,16.04237132,138.27,138.24,0.7]
[1765199716619,31.46072115,138.28,138.24,7.93371853]
[1765199716918,7.23085205,138.3,138.25,2.84406993]
[1765199717250,15.15085205,138.3,138.26,2.14406993]
[1765199717552,7.92,138.3,138.27,2.84406993]
[1765199717860,7.92,138.32,138.28,2.14406993]
[1765199718022,0.71,138.31,138.27,0.7]
[1765199718232,16.0406029,138.3,138.27,0.7]
[1765199719316,7.2302278,138.31,138.27,7.93219971]
[1765199719516,16.04017272,138.31,138.27,7.93219971]
[1765199719740,16.04017272,138.31,138.28,0.7]
[1765199720042,15.14976691,138.32,138.28,0.7]
[1765199720247,15.14976691,138.32,138.28,7.93142746]
[1765199720746,15.14976691,138.32,138.29,0.7]
[1765199721218,15.84976691,138.32,138.29,0.7]
[1765199721821,37.22464358,138.34,138.29,0.7]
[1765199722022,16.73903477,138.33,138.29,0.7]
[1765199722423,2.84406993,138.32,138.27,7.94215765]
[1765199722842,2.84406993,138.31,138.26,7.23263806]
[1765199723047,2.84406993,138.31,138.26,0.71]
[1765199723253,2.84406993,138.31,138.27,0.71]
[1765199723637,0.7,138.31,138.27,0.71]
[1765199723837,7.9303205,138.31,138.27,7.94206514]
[1765199724025,15.14984596,138.32,138.27,10.08613507]
[1765199724338,15.84984596,138.32,138.28,0.71]
[1765199726340,7.22984596,138.32,138.28,0.71]
[1765199727153,10.07391589,138.32,138.28,0.71]
[1765199727558,9.50994492,138.31,138.28,0.71]
[1765199727960,9.50994492,138.31,138.26,0.71]
[1765199727961,8.62,138.3,138.26,0.71]
[1765199728258,8.62,138.3,138.27,0.71]
[1765199729037,8.62,138.3,138.26,0.71]
[1765199729659,7.23118085,138.29,138.26,0.71]
[1765199729862,15.15085663,138.3,138.26,7.94255699]
[1765199730032,15.85085663,138.3,138.26,7.94255699]
[1765199730341,15.85085663,138.3,138.27,0.71]
[1765199730947,7.92,138.3,138.27,7.94194825]
[1765199731157,7.92,138.31,138.28,0.71]
[1765199732070,119.73923212,138.33,138.28,0.71]
[1765199732373,7.92,138.32,138.28,0.71]
[1765199732662,8.62,138.32,138.28,0.71]
[1765199733252,15.84971449,138.32,138.28,7.94142411]
[1765199733869,17.29378442,138.32,138.27,7.23218847]
[1765199734038,17.99378442,138.32,138.28,0.71]
[1765199735250,0.7,138.31,138.28,0.71]
[1765199735455,9.50994492,138.31,138.28,0.71]
[1765199735645,9.50994492,138.31,138.25,2.14406993]
[1765199735646,10.95401485,138.3,138.25,0.71]
[1765199735848,8.62,138.29,138.25,0.71]
[1765199736158,10.76406993,138.29,138.25,0.71]
[1765199737459,7.23170378,138.28,138.25,0.71]
[1765199738967,0.7,138.27,138.23,15.86416989]
[1765199739160,10.07577371,138.28,138.24,0.71]
[1765199739357,9.50994492,138.27,138.24,0.71]
[1765199739666,9.50994492,138.27,138.22,8.1446327]
[1765199739667,15.15274989,138.26,138.22,8.1446327]
[1765199739869,15.85274989,138.26,138.23,0.71]
[1765199740469,15.15274989,138.26,138.23,0.71]
[1765199740673,15.85274989,138.26,138.23,0.71]
[1765199741075,15.85274989,138.26,138.23,7.9442079]
[1765199741781,15.85274989,138.26,138.23,0.71]
[1765199743688,15.85274989,138.26,138.22,0.2]
[1765199743897,15.85274989,138.26,138.23,0.71]
[1765199744200,19.20293021,138.26,138.22,0.91]
[1765199744686,15.85274989,138.26,138.23,0.71]
[1765199745276,15.15274989,138.26,138.23,0.71]
[1765199745672,15.85274989,138.26,138.23,0.71]
[1765199748195,19.20293021,138.26,138.23,0.71]
[1765199748593,15.85274989,138.26,138.23,0.71]
[1765199751379,0.67,138.25,138.22,0.2]
[1765199751581,11.27018032,138.24,138.22,0.2]
[1765199751980,0.67,138.23,138.22,0.2]
[1765199752302,4.02018032,138.23,138.22,0.2]
[1765199753203,9.47994492,138.23,138.22,0.2]
[1765199754184,16.71426453,138.23,138.22,0.2]
[1765199755190,16.308864,138.28,138.22,0.2]
[1765199755399,8.80994492,138.26,138.22,0.86]
[1765199755907,8.80994492,138.26,138.23,0.66]
[1765199756304,4.02018032,138.25,138.22,0.2]
[1765199756598,20.08012524,138.24,138.22,0.2]
[1765199756804,20.75012524,138.24,138.22,0.2]
[1765199757604,7.92,138.24,138.22,0.86]
[1765199758079,7.92,138.25,138.22,7.43483986]
[1765199758279,7.92,138.25,138.23,0.66]
[1765199759889,12.83012524,138.24,138.22,0.2]
[1765199760095,7.92,138.23,138.22,0.2]
[1765199760308,8.59,138.23,138.22,0.2]
[1765199761892,7.92,138.23,138.22,0.2]
[1765199762707,7.92,138.23,138.22,0.86]
[1765199762898,7.92,138.25,138.22,8.094843]
[1765199763207,7.92,138.25,138.23,0.66]
[1765199764389,7.92,138.25,138.23,7.8942207]
[1765199764806,7.92,138.25,138.22,0.2]
[1765199764807,4.02018032,138.24,138.22,0.2]
[1765199766082,7.90389523,138.24,138.22,0.2]
[1765199766901,11.25407555,138.24,138.22,0.2]
[1765199767217,7.90389523,138.24,138.22,0.2]
[1765199767397,19.20369045,138.25,138.22,0.2]
[1765199767603,8.80994492,138.24,138.22,0.87]
[1765199768295,8.80994492,138.24,138.22,0.2]
[1765199768610,8.62,138.23,138.22,0.2]
[1765199769509,15.85431961,138.23,138.22,0.2]
[1765199769723,15.15431961,138.23,138.22,0.2]
[1765199770306,15.85431961,138.23,138.22,0.2]
[1765199770529,7.92,138.23,138.22,0.2]
[1765199772950,7.92,138.23,138.22,0.87]
[1765199773246,7.93348209,138.25,138.22,0.87]
[1765199773548,7.92,138.24,138.22,0.87]
[1765199778338,7.92,138.24,138.22,0.2]
[1765199778536,7.92,138.24,138.22,0.87]
[1765199780152,15.15380681,138.24,138.22,0.87]
[1765199780656,0.7,138.23,138.22,0.2]
[1765199781139,4.05018032,138.23,138.22,0.2]
[1765199781335,7.92,138.24,138.22,8.09471524]
[1765199781556,8.80994492,138.28,138.23,3.35018032]
[1765199781859,7.92,138.27,138.23,0.66]
[1765199782160,7.92,138.27,138.24,7.89360926]
[1765199782452,15.8722452,138.27,138.24,0.66]
[1765199782950,9.52994492,138.26,138.22,0.86]
[1765199783149,7.92,138.27,138.23,0.66]
[1765199783957,8.80994492,138.29,138.24,10.58385374]
[1765199784148,17.44994492,138.29,138.24,10.58385374]
[1765199784347,0.72,138.28,138.25,0.66]
[1765199785046,16.72994492,138.29,138.25,0.66]
[1765199785047,24.6812785,138.29,138.25,0.66]
[1765199786061,24.6812785,138.29,138.25,7.89294432]
[1765199786262,24.6812785,138.29,138.26,0.66]
[1765199786459,15.87133358,138.29,138.26,0.66]
[1765199786937,7.92,138.29,138.26,0.66]
[1765199787257,7.22981328,138.32,138.28,3.35018032]
[1765199787666,7.22981328,138.32,138.29,0.66]
[1765199787955,25.83880892,138.33,138.3,7.23065798]
[1765199787956,7.94929867,138.33,138.3,7.23065798]
[1765199788159,7.94929867,138.33,138.3,0.66]
[1765199788533,15.14871997,138.34,138.3,4.01018032]
[1765199788750,0.72,138.33,138.3,0.66]
[1765199788958,9.52994492,138.33,138.28,7.89150935]
[1765199789270,8.80994492,138.33,138.29,10.58125504]
[1765199789772,15.14866246,138.34,138.3,0.66]
[1765199789958,15.86866246,138.34,138.3,11.24061928]
[1765199790361,15.86866246,138.34,138.31,0.66]
[1765199790869,7.92,138.34,138.31,0.66]
[1765199791266,7.22825399,138.35,138.31,4.01018032]
[1765199791572,7.94825399,138.35,138.31,4.01018032]
[1765199791774,7.94825399,138.35,138.32,0.66]
[1765199791969,7.22825399,138.35,138.31,0.66]
[1765199792159,0.72,138.34,138.31,0.66]
[1765199792762,4.07018032,138.34,138.29,7.89099765]
[1765199792994,16.72994492,138.33,138.28,7.89138807]
[1765199793167,15.14825399,138.35,138.31,3.35018032]
[1765199793353,0.72,138.34,138.31,0.66]
[1765199794969,0.72,138.34,138.31,7.89006846]
[1765199795288,15.14825399,138.35,138.32,0.66]
[1765199795289,7.92,138.35,138.32,0.66]
[1765199795967,7.92,138.35,138.32,4.01018032]
[1765199796165,7.92,138.35,138.31,7.23006846]
[1765199796166,7.92,138.35,138.33,0.66]
[1765199796472,0.72,138.34,138.31,11.24024878]
[1765199796778,0.72,138.34,138.31,0.66]
[1765199797081,0.72,138.34,138.31,7.88982072]
[1765199797277,15.1480454,138.35,138.32,0.66]
[1765199797463,15.8680454,138.35,138.3,3.35018032]
[1765199797664,15.8680454,138.35,138.31,0.66]
[1765199797962,12.16012524,138.36,138.33,3.35018032]
[1765199797963,18.06818495,138.36,138.33,3.35018032]
[1765199798175,15.86711618,138.37,138.32,10.57977927]
[1765199798357,34.60242154,138.37,138.33,0.66]
[1765199798766,15.86711618,138.37,138.33,0.66]
[1765199799589,0.72,138.36,138.32,10.57968161]
[1765199799761,0.72,138.36,138.31,11.24021528]
[1765199800279,0.72,138.36,138.29,0.66]
[1765199800280,12.16012524,138.35,138.29,0.66]
[1765199800534,11.27018032,138.34,138.29,0.66]
[1765199800791,11.99018032,138.34,138.29,7.8908682]
[1765199800988,0.72,138.33,138.29,7.8908682]
[1765199801178,0.72,138.33,138.3,0.5]
[1765199801761,8.80994492,138.3,138.25,0.66]